lending/lending_fUSD_20250719
["ID","MTS","AMOUNT","RATE_DAILY","PERIOD"]
[373319492,1752943854515,-991.3,0.00019395,2]
[373319493,1752943854525,-991.3,0.00019395,2]
[373319494,1752943854535,-991.3,0.00019395,2]
[373319495,1752943854545,-991.3,0.00019395,2]
[373319496,1752943854555,-991.3,0.00019395,2]
[373319497,1752943854566,-991.3,0.00019395,2]
[373319498,1752943854577,-991.3,0.00019395,2]
[373319499,1752943854588,-666.0,0.00019395,2]
[373319500,1752943854599,-666.0,0.00019396,2]
[373319501,1752943854609,-300.0,0.00019396,2]
[373319502,1752943854620,-151.0,0.00019396,2]
[373319503,1752943854630,-151.0,0.00019396,2]
[373319504,1752943854640,-151.0,0.00019396,2]
[373319505,1752943854649,-166.913198,0.00019396,2]
[373319506,1752943854659,-151.0,0.00019396,2]
[373319507,1752943854669,-151.0,0.00019396,2]
[373319508,1752943854679,-151.0,0.00019396,2]
[373319509,1752943854689,-151.0,0.00019396,2]
[373319510,1752943854699,-151.0,0.00019396,2]
[373319511,1752943854710,-151.0,0.00019396,2]
[373319512,1752943854720,-151.0,0.00019396,2]
[373319513,1752943854733,-151.0,0.00019396,2]
[373319514,1752943854743,-291.025136,0.00019396,2]
[373319515,1752943854753,-151.0,0.00019396,2]
[373319516,1752943854763,-151.0,0.00019396,2]
[373319517,1752943854774,-181.622824,0.00019396,2]
[373319518,1752943854783,-503.89,0.00019396,2]
[373319519,1752943854793,-503.89,0.00019396,2]
[373319520,1752943854804,-271.735795,0.00019396,2]
[373319521,1752943854813,-271.735795,0.00019396,2]
[373319522,1752943854823,-151.0,0.00019396,2]
[373319523,1752943854833,-151.0,0.00019396,2]
[373319524,1752943854843,-151.0,0.00019396,2]
[373319525,1752943854853,-251.530109,0.00019396,2]
[373319526,1752943854862,-251.530109,0.00019396,2]
[373319527,1752943854872,-275.565567,0.00019396,2]
[373319528,1752943854882,-151.0,0.00019396,2]
[373319529,1752943854891,-275.565567,0.00019396,2]
[373319530,1752943854901,-151.0,0.00019396,2]
[373319531,1752943854910,-354.387571,0.00019396,2]
[373319532,1752943854920,-354.387571,0.00019396,2]
[373319533,1752943854931,-179.690044,0.00019396,2]
[373319534,1752943854940,-179.690044,0.00019396,2]
[373319535,1752943854950,-151.0,0.00019396,2]
[373319536,1752943854959,-151.0,0.00019396,2]
[373319537,1752943854968,-151.0,0.00019396,2]
[373319538,1752943854978,-300.0,0.00019396,2]
[373319539,1752943854988,-382.244973,0.00019396,2]
[373319540,1752943854998,-382.244973,0.00019396,2]
[373319541,1752943855009,-151.0,0.00019396,2]
[373319542,1752943855019,-151.0,0.00019396,2]
[373319543,1752943855028,-151.0,0.00019396,2]
[373319544,1752943855038,-151.0,0.00019396,2]
[373319545,1752943855047,-2888.79,0.00019396,2]
[373319546,1752943855057,-991.3,0.00019396,2]
[373319547,1752943855067,-991.3,0.00019396,2]
[373319548,1752943855077,-206355.90993327,0.00019397,2]
[373319549,1752943855086,-155.532021,0.00019397,2]
[373319550,1752943855096,-151.0,0.00019397,2]
[373319551,1752943855105,-151.0,0.00019397,2]
[373319552,1752943855115,-151.0,0.00019397,2]
[373319553,1752943855125,-151.0,0.00019397,2]
[373319554,1752943855133,-151.0,0.00019397,2]
[373319555,1752943855142,-151.0,0.00019397,2]
[373319556,1752943855152,-151.0,0.00019397,2]
[373319557,1752943855160,-153.299982,0.00019397,2]
[373319558,1752943855169,-151.0,0.00019397,2]
[373319559,1752943855178,-151.0,0.00019397,2]
[373319560,1752943855188,-151.0,0.00019397,2]
[373319561,1752943855198,-152.097919,0.00019397,2]
[373319562,1752943855208,-151.657213,0.00019397,2]
[373319563,1752943855218,-151.0,0.00019397,2]
[373319564,1752943855228,-151.0,0.00019397,2]
[373319565,1752943855237,-151.0,0.00019397,2]
[373319566,1752943855247,-151.0,0.00019397,2]
[373319567,1752943855257,-480.0,0.00019397,2]
[373319568,1752943855266,-151.0,0.00019397,2]
[373319569,1752943855276,-151.0,0.00019397,2]
[373319570,1752943855285,-480.0,0.00019397,2]
[373319571,1752943855295,-480.0,0.00019397,2]
[373319572,1752943855305,-151.0,0.00019397,2]
[373319573,1752943855315,-151.0,0.00019397,2]
[373319574,1752943855324,-151.0,0.00019397,2]
[373319575,1752943855334,-151.0,0.00019397,2]
[373319576,1752943855344,-151.0,0.00019397,2]
[373319577,1752943855353,-151.0,0.00019397,2]
[373319578,1752943855363,-151.0,0.00019397,2]
[373319579,1752943855372,-151.0,0.00019397,2]
[373319580,1752943855382,-151.0,0.00019397,2]
[373319581,1752943855391,-151.0,0.00019397,2]
[373319582,1752943855401,-176.56554,0.00019397,2]
[373319583,1752943855411,-1557.145121,0.00019397,2]
[373319584,1752943855422,-1459.65329,0.00019397,2]
[373319585,1752943855432,-1472.732795,0.00019397,2]
[373319586,1752943855443,-480.0,0.00019397,2]
[373319587,1752943855453,-480.0,0.00019397,2]
[373319588,1752943855462,-480.0,0.00019397,2]
[373319589,1752943855472,-480.0,0.00019397,2]
[373319590,1752943855482,-151.0,0.00019397,2]
[373319591,1752943855492,-151.0,0.00019397,2]
[373319592,1752943855504,-365.04,0.00019397,2]
[373319593,1752943855514,-480.0,0.00019397,2]
[373319594,1752943855525,-480.0,0.00019397,2]
[373319595,1752943855535,-480.0,0.00019397,2]
[373319596,1752943855545,-153.68618038,0.00019397,2]
[373319597,1752943855555,-480.0,0.00019397,2]
[373319598,1752943855564,-153.554969,0.00019397,2]
[373319599,1752943855574,-320.0,0.00019397,2]
[373319600,1752943855584,-380.0,0.00019397,2]
[373319601,1752943855595,-450.10617552,0.00019397,2]
[373319602,1752943855604,-360.0,0.00019397,2]
[373319603,1752943855614,-480.0,0.00019397,2]
[373319604,1752943855624,-151.0,0.00019397,2]
[373319605,1752943855634,-480.0,0.00019397,2]
[373319606,1752943855643,-480.0,0.00019397,2]
[373319607,1752943855653,-480.0,0.00019397,2]
[373319608,1752943855663,-480.0,0.00019397,2]
[373319609,1752943855673,-480.0,0.00019397,2]
[373319610,1752943855683,-308.23,0.00019397,2]
[373319611,1752943855692,-360.0,0.00019397,2]
[373319612,1752943855702,-240.0,0.00019397,2]
[373319613,1752943855711,-448.96,0.00019397,2]
[373319614,1752943855724,-151.0,0.00019397,2]
[373319615,1752943855735,-151.0,0.00019397,2]
[373319616,1752943855744,-480.0,0.00019397,2]
[373319617,1752943855754,-480.0,0.00019397,2]
[373319618,1752943855763,-340.0,0.00019397,2]
[373319619,1752943855774,-271.735795,0.00019397,2]
[373319620,1752943855784,-271.735795,0.00019397,2]
[373319621,1752943855794,-271.735795,0.00019397,2]
[373319622,1752943855804,-271.735795,0.00019397,2]
[373319623,1752943855815,-525.05,0.00019397,2]
[373319624,1752943855824,-480.0,0.00019397,2]
[373319625,1752943855834,-340.0,0.00019397,2]
[373319626,1752943855844,-151.0,0.00019397,2]
[373319627,1752943855854,-151.0,0.00019397,2]
[373319628,1752943855864,-366.22,0.00019397,2]
[373319629,1752943855874,-151.0,0.00019397,2]
[373319630,1752943855885,-151.0,0.00019397,2]
[373319631,1752943855895,-380.0,0.00019397,2]
[373319632,1752943855905,-380.0,0.00019397,2]
[373319633,1752943855915,-190.68,0.00019397,2]
[373319634,1752943855925,-250.34,0.00019397,2]
[373319635,1752943855935,-480.0,0.00019397,2]
[373319636,1752943855946,-151.0,0.00019397,2]
[373319637,1752943855956,-151.0,0.00019397,2]
[373319638,1752943855966,-480.0,0.00019397,2]
[373319639,1752943855976,-480.0,0.00019397,2]
[373319640,1752943855986,-480.0,0.00019397,2]
[373319641,1752943855996,-480.0,0.00019397,2]
[373319642,1752943856006,-480.0,0.00019397,2]
[373319643,1752943856017,-480.0,0.00019397,2]
[373319644,1752943856027,-624.81438021,0.00019397,2]
[373319645,1752943856037,-251.530109,0.00019397,2]
[373319646,1752943856048,-251.530109,0.00019397,2]
[373319647,1752943856058,-480.0,0.00019397,2]
[373319648,1752943856068,-384.1,0.00019397,2]
[373319649,1752943856078,-251.530109,0.00019397,2]
[373319650,1752943856088,-251.530109,0.00019397,2]
[373319651,1752943856098,-480.0,0.00019397,2]
[373319652,1752943856108,-480.0,0.00019397,2]
[373319653,1752943856118,-480.0,0.00019397,2]
[373319654,1752943856128,-480.0,0.00019397,2]
[373319655,1752943856138,-555.93,0.00019397,2]
[373319656,1752943856147,-736.27,0.00019397,2]
[373319657,1752943856157,-480.0,0.00019397,2]
[373319658,1752943856167,-360.57,0.00019397,2]
[373319659,1752943856176,-480.0,0.00019397,2]
[373319660,1752943856186,-480.0,0.00019397,2]
[373319661,1752943856196,-480.0,0.00019397,2]
[373319662,1752943856205,-480.0,0.00019397,2]
[373319663,1752943856217,-480.0,0.00019397,2]
[373319664,1752943856226,-480.0,0.00019397,2]
[373319665,1752943856237,-571.98,0.00019397,2]
[373319666,1752943856247,-480.0,0.00019397,2]
[373319667,1752943856256,-480.0,0.00019397,2]
[373319668,1752943856267,-573.36,0.00019397,2]
[373319669,1752943856279,-480.0,0.00019397,2]
[373319670,1752943856289,-411.19148026,0.00019397,2]
[373319671,1752943856300,-480.0,0.00019397,2]
[373319672,1752943856310,-275.565567,0.00019397,2]
[373319673,1752943856320,-151.0,0.00019397,2]
[373319674,1752943856330,-275.565567,0.00019397,2]
[373319675,1752943856341,-151.0,0.00019397,2]
[373319676,1752943856351,-480.0,0.00019397,2]
[373319677,1752943856360,-480.0,0.00019397,2]
[373319678,1752943856371,-151.0,0.00019397,2]
[373319679,1752943856382,-166.221473,0.00019397,2]
[373319680,1752943856392,-275.565567,0.00019397,2]
[373319681,1752943856401,-339.76,0.00019397,2]
[373319682,1752943856412,-275.565567,0.00019397,2]
[373319683,1752943856423,-480.0,0.00019397,2]
[373319684,1752943856433,-354.387571,0.00019397,2]
[373319685,1752943856442,-354.387571,0.00019397,2]
[373319686,1752943856452,-480.0,0.00019397,2]
[373319687,1752943856462,-545.91,0.00019397,2]
[373319688,1752943856472,-480.0,0.00019397,2]
[373319689,1752943856482,-354.387571,0.00019397,2]
[373319690,1752943856492,-354.387571,0.00019397,2]
[373319691,1752943856502,-480.0,0.00019397,2]
[373319692,1752943856512,-202.45,0.00019397,2]
[373319693,1752943856522,-480.0,0.00019397,2]
[373319694,1752943856532,-468.94,0.00019397,2]
[373319695,1752943856542,-595.78,0.00019397,2]
[373319696,1752943856551,-509.69,0.00019397,2]
[373319697,1752943856561,-480.0,0.00019397,2]
[373319698,1752943856571,-179.690044,0.00019397,2]
[373319699,1752943856581,-179.690044,0.00019397,2]
[373319700,1752943856590,-179.690044,0.00019397,2]
[373319701,1752943856600,-179.690044,0.00019397,2]
[373319702,1752943856609,-534.62690221,0.00019397,2]
[373319703,1752943856619,-380.0,0.00019397,2]
[373319704,1752943856628,-425.67,0.00019397,2]
[373319705,1752943856637,-151.0,0.00019397,2]
[373319706,1752943856649,-480.0,0.00019397,2]
[373319707,1752943856659,-151.0,0.00019397,2]
[373319708,1752943856668,-480.0,0.00019397,2]
[373319709,1752943856678,-480.0,0.00019397,2]
[373319710,1752943856688,-480.0,0.00019397,2]
[373319711,1752943856697,-151.0,0.00019397,2]
[373319712,1752943856707,-151.0,0.00019397,2]
[373319713,1752943856716,-480.0,0.00019397,2]
[373319714,1752943856730,-480.0,0.00019397,2]
[373319715,1752943856740,-716.3,0.00019397,2]
[373319716,1752943856753,-480.0,0.00019397,2]
[373319717,1752943856768,-480.0,0.00019397,2]
[373319718,1752943856782,-480.0,0.00019397,2]
[373319719,1752943856795,-480.0,0.00019397,2]
[373319720,1752943856806,-480.0,0.00019397,2]
[373319721,1752943856817,-480.0,0.00019397,2]
[373319722,1752943856829,-340.0,0.00019397,2]
[373319723,1752943856841,-480.0,0.00019397,2]
[373319724,1752943856853,-480.0,0.00019397,2]
[373319725,1752943856865,-480.0,0.00019397,2]
[373319726,1752943856877,-480.0,0.00019397,2]
[373319727,1752943856891,-364.74,0.00019397,2]
[373319728,1752943856903,-151.0,0.00019397,2]
[373319729,1752943856915,-151.0,0.00019397,2]
[373319730,1752943856926,-288.04007582,0.00019397,2]
[373319731,1752943856937,-297.11,0.00019397,2]
[373319732,1752943856948,-588.9,0.00019397,2]
[373319733,1752943856961,-480.0,0.00019397,2]
[373319734,1752943856972,-480.0,0.00019397,2]
[373319735,1752943856984,-480.0,0.00019397,2]
[373319736,1752943856996,-480.0,0.00019397,2]
[373319737,1752943857008,-480.0,0.00019397,2]
[373319738,1752943857021,-480.0,0.00019397,2]
[373319739,1752943857032,-480.0,0.00019397,2]
[373319740,1752943857044,-480.0,0.00019397,2]
[373319741,1752943857057,-480.0,0.00019397,2]
[373319742,1752943857070,-382.244973,0.00019397,2]
[373319743,1752943857083,-382.244973,0.00019397,2]
[373319744,1752943857096,-480.0,0.00019397,2]
[373319745,1752943857109,-382.244973,0.00019397,2]
[373319746,1752943857122,-382.244973,0.00019397,2]
[373319747,1752943857135,-480.0,0.00019397,2]
[373319748,1752943857147,-480.0,0.00019397,2]
[373319749,1752943857160,-480.0,0.00019397,2]
[373319750,1752943857171,-695.29,0.00019397,2]
[373319751,1752943857184,-369.96,0.00019397,2]
[373319752,1752943857195,-480.0,0.00019397,2]
[373319753,1752943857207,-480.0,0.00019397,2]
[373319754,1752943857219,-480.0,0.00019397,2]
[373319755,1752943857232,-480.0,0.00019397,2]
[373319756,1752943857245,-480.0,0.00019397,2]
[373319757,1752943857258,-151.0,0.00019397,2]
[373319758,1752943857270,-480.0,0.00019397,2]
[373319759,1752943857282,-151.0,0.00019397,2]
[373319760,1752943857294,-480.0,0.00019397,2]
[373319761,1752943857305,-480.0,0.00019397,2]
[373319762,1752943857316,-252.167132,0.00019397,2]
[373319763,1752943857327,-151.0,0.00019397,2]
[373319764,1752943857339,-151.0,0.00019397,2]
[373319765,1752943857352,-515.25,0.00019397,2]
[373319766,1752943857366,-151.0,0.00019397,2]
[373319767,1752943857377,-236.808862,0.00019397,2]
[373319768,1752943857387,-480.0,0.00019397,2]
[373319769,1752943857397,-151.0,0.00019397,2]
[373319770,1752943857407,-480.0,0.00019397,2]
[373319771,1752943857418,-506.58,0.00019397,2]
[373319772,1752943857429,-480.0,0.00019397,2]
[373319773,1752943857441,-480.0,0.00019397,2]
[373319774,1752943857454,-480.0,0.00019397,2]
[373319775,1752943857465,-480.0,0.00019397,2]
[373319776,1752943857476,-480.0,0.00019397,2]
[373319777,1752943857487,-247.94660228,0.00019397,2]
[373319778,1752943857497,-563.61,0.00019397,2]
[373319779,1752943857508,-480.0,0.00019397,2]
[373319780,1752943857520,-480.0,0.00019397,2]
[373319781,1752943857530,-480.0,0.00019397,2]
[373319782,1752943857541,-480.0,0.00019397,2]
[373319783,1752943857553,-480.0,0.00019397,2]
[373319784,1752943857564,-480.0,0.00019397,2]
[373319785,1752943857574,-480.0,0.00019397,2]
[373319786,1752943857585,-356.92,0.00019397,2]
[373319787,1752943857597,-480.0,0.00019397,2]
[373319788,1752943857607,-350.63,0.00019397,2]
[373319789,1752943857619,-208.995214,0.00019397,2]
[373319790,1752943857629,-208.995214,0.00019397,2]
[373319791,1752943857641,-480.0,0.00019397,2]
[373319792,1752943857652,-480.0,0.00019397,2]
[373319793,1752943857663,-273.72,0.00019397,2]
[373319794,1752943857674,-208.995214,0.00019397,2]
[373319795,1752943857685,-208.995214,0.00019397,2]
[373319796,1752943857696,-480.0,0.00019397,2]
[373319797,1752943857707,-151.0,0.00019397,2]
[373319798,1752943857718,-151.0,0.00019397,2]
[373319799,1752943857732,-480.0,0.00019397,2]
[373319800,1752943857743,-480.0,0.00019397,2]
[373319801,1752943857754,-480.0,0.00019397,2]
[373319802,1752943857767,-480.0,0.00019397,2]
[373319803,1752943857778,-480.0,0.00019397,2]
[373319804,1752943857789,-480.0,0.00019397,2]
[373319805,1752943857800,-480.0,0.00019397,2]
[373319806,1752943857811,-480.0,0.00019397,2]
[373319807,1752943857822,-233.37327427,0.00019397,2]
[373319808,1752943857833,-480.0,0.00019397,2]
[373319809,1752943857844,-480.0,0.00019397,2]
[373319810,1752943857856,-480.0,0.00019397,2]
[373319811,1752943857867,-480.0,0.00019397,2]
[373319812,1752943857878,-292.51,0.00019397,2]
[373319813,1752943857889,-480.0,0.00019397,2]
[373319814,1752943857900,-360.0,0.00019397,2]
[373319815,1752943857911,-510.51,0.00019397,2]
[373319816,1752943857922,-630.627786,0.00019397,2]
[373319817,1752943857934,-630.627786,0.00019397,2]
[373319818,1752943857945,-480.0,0.00019397,2]
[373319819,1752943857956,-630.627786,0.00019397,2]
[373319820,1752943857967,-630.627786,0.00019397,2]
[373319821,1752943857978,-480.0,0.00019397,2]
[373319822,1752943857989,-480.0,0.00019397,2]
[373319823,1752943858000,-480.0,0.00019397,2]
[373319824,1752943858012,-340.0,0.00019397,2]
[373319825,1752943858024,-543.1735307,0.00019397,2]
[373319826,1752943858035,-480.0,0.00019397,2]
[373319827,1752943858046,-480.0,0.00019397,2]
[373319828,1752943858058,-480.0,0.00019397,2]
[373319829,1752943858068,-480.0,0.00019397,2]
[373319830,1752943858079,-480.0,0.00019397,2]
[373319831,1752943858091,-280.0,0.00019397,2]
[373319832,1752943858101,-480.0,0.00019397,2]
[373319833,1752943858113,-480.0,0.00019397,2]
[373319834,1752943858124,-480.0,0.00019397,2]
[373319835,1752943858134,-503.07,0.00019397,2]
[373319836,1752943858145,-480.0,0.00019397,2]
[373319837,1752943858156,-480.0,0.00019397,2]
[373319838,1752943858167,-556.63,0.00019397,2]
[373319839,1752943858178,-151.0,0.00019397,2]
[373319840,1752943858189,-151.0,0.00019397,2]
[373319841,1752943858200,-480.0,0.00019397,2]
[373319842,1752943858211,-758.59,0.00019397,2]
[373319843,1752943858222,-480.0,0.00019397,2]
[373319844,1752943858233,-480.0,0.00019397,2]
[373319845,1752943858247,-506.8,0.00019397,2]
[373319846,1752943858258,-480.0,0.00019397,2]
[373319847,1752943858270,-480.0,0.00019397,2]
[373319848,1752943858281,-480.0,0.00019397,2]
[373319849,1752943858293,-480.0,0.00019397,2]
[373319850,1752943858304,-480.0,0.00019397,2]
[373319851,1752943858316,-480.0,0.00019397,2]
[373319852,1752943858327,-480.0,0.00019397,2]
[373319853,1752943858339,-526.41,0.00019397,2]
[373319854,1752943858351,-480.0,0.00019397,2]
[373319855,1752943858362,-480.0,0.00019397,2]
[373319856,1752943858374,-480.0,0.00019397,2]
[373319857,1752943858385,-436.79206411,0.00019397,2]
[373319858,1752943858397,-2364.56,0.00019397,2]
[373319859,1752943858408,-360.0,0.00019397,2]
[373319860,1752943858420,-480.0,0.00019397,2]
[373319861,1752943858431,-480.0,0.00019397,2]
[373319862,1752943858443,-708.41,0.00019397,2]
[373319863,1752943858455,-615.95,0.00019397,2]
[373319864,1752943858467,-480.0,0.00019397,2]
[373319865,1752943858479,-293.79,0.00019397,2]
[373319866,1752943858490,-614.76,0.00019397,2]
[373319867,1752943858502,-505.86,0.00019397,2]
[373319868,1752943858513,-728.03,0.00019397,2]
[373319869,1752943858525,-480.0,0.00019397,2]
[373319870,1752943858536,-926.56,0.00019397,2]
[373319871,1752943858548,-568.24,0.00019397,2]
[373319872,1752943858563,-1776.31,0.00019397,2]
[373319873,1752943858575,-480.0,0.00019397,2]
[373319874,1752943858586,-480.0,0.00019397,2]
[373319875,1752943858599,-639.91,0.00019397,2]
[373319876,1752943858610,-480.0,0.00019397,2]
[373319877,1752943858621,-739.39,0.00019397,2]
[373319878,1752943858632,-965.46,0.00019397,2]
[373319879,1752943858643,-480.0,0.00019397,2]
[373319880,1752943858655,-480.0,0.00019397,2]
[373319881,1752943858665,-824.31,0.00019397,2]
[373319882,1752943858677,-3679.87,0.00019397,2]
[373319883,1752943858687,-480.0,0.00019397,2]
[373319884,1752943858699,-651.46,0.00019397,2]
[373319885,1752943858709,-3282.25,0.00019397,2]
[373319886,1752943858722,-480.0,0.00019397,2]
[373319887,1752943858735,-1426.99,0.00019397,2]
[373319888,1752943858746,-610.03,0.00019397,2]
[373319889,1752943858757,-567.89,0.00019397,2]
[373319890,1752943858771,-525.53,0.00019397,2]
[373319891,1752943858782,-480.0,0.00019397,2]
[373319892,1752943858794,-480.0,0.00019397,2]
[373319893,1752943858806,-480.0,0.00019397,2]
[373319894,1752943858817,-266.819656,0.00019397,2]
[373319895,1752943858829,-668.04,0.00019397,2]
[373319896,1752943858841,-266.819656,0.00019397,2]
[373319897,1752943858853,-480.0,0.00019397,2]
[373319898,1752943858863,-797.63,0.00019397,2]
[373319899,1752943858875,-265.15,0.00019397,2]
[373319900,1752943858889,-791.95,0.00019397,2]
[373319901,1752943858900,-266.819656,0.00019397,2]
[373319902,1752943858911,-266.819656,0.00019397,2]
[373319903,1752943858922,-617.74,0.00019397,2]
[373319904,1752943858934,-151.0,0.00019397,2]
[373319905,1752943858945,-480.0,0.00019397,2]
[373319906,1752943858956,-151.0,0.00019397,2]
[373319907,1752943858968,-702.27,0.00019397,2]
[373319908,1752943858980,-640.28,0.00019397,2]
[373319909,1752943858991,-480.0,0.00019397,2]
[373319910,1752943859002,-2586.65,0.00019397,2]
[373319911,1752943859013,-523.63,0.00019397,2]
[373319912,1752943859024,-480.0,0.00019397,2]
[373319913,1752943859035,-480.0,0.00019397,2]
[373319914,1752943859045,-480.0,0.00019397,2]
[373319915,1752943859056,-480.0,0.00019397,2]
[373319916,1752943859067,-480.0,0.00019397,2]
[373319917,1752943859079,-1294.91,0.00019397,2]
[373319918,1752943859091,-480.0,0.00019397,2]
[373319919,1752943859102,-480.0,0.00019397,2]
[373319920,1752943859114,-1637.75,0.00019397,2]
[373319921,1752943859127,-360.0,0.00019397,2]
[373319922,1752943859138,-2000.23,0.00019397,2]
[373319923,1752943859148,-498.01,0.00019397,2]
[373319924,1752943859159,-480.0,0.00019397,2]
[373319925,1752943859172,-480.0,0.00019397,2]
[373319926,1752943859184,-480.0,0.00019397,2]
[373319927,1752943859195,-1150.84,0.00019397,2]
[373319928,1752943859206,-480.0,0.00019397,2]
[373319929,1752943859218,-488.92,0.00019397,2]
[373319930,1752943859230,-480.0,0.00019397,2]
[373319931,1752943859242,-380.0,0.00019397,2]
[373319932,1752943859255,-1162.91,0.00019397,2]
[373319933,1752943859266,-480.0,0.00019397,2]
[373319934,1752943859278,-1228.06,0.00019397,2]
[373319935,1752943859291,-480.0,0.00019397,2]
[373319936,1752943859302,-480.0,0.00019397,2]
[373319937,1752943859313,-480.0,0.00019397,2]
[373319938,1752943859324,-492.45,0.00019397,2]
[373319939,1752943859335,-455.93,0.00019397,2]
[373319940,1752943859349,-1012.75,0.00019397,2]
[373319941,1752943859359,-291.48816712,0.00019397,2]
[373319942,1752943859370,-2721.18,0.00019397,2]
[373319943,1752943859381,-480.0,0.00019397,2]
[373319944,1752943859391,-480.0,0.00019397,2]
[373319945,1752943859400,-3030.15,0.00019397,2]
[373319946,1752943859410,-400.0,0.00019397,2]
[373319947,1752943859419,-1766.08,0.00019397,2]
[373319948,1752943859429,-1000.0,0.00019397,2]
[373319949,1752943859439,-1186.68,0.00019397,2]
[373319950,1752943859448,-480.0,0.00019397,2]
[373319951,1752943859458,-679.12,0.00019397,2]
[373319952,1752943859467,-566.54,0.00019397,2]
[373319953,1752943859476,-480.0,0.00019397,2]
[373319954,1752943859486,-480.0,0.00019397,2]
[373319955,1752943859496,-830.78,0.00019397,2]
[373319956,1752943859505,-480.0,0.00019397,2]
[373319957,1752943859516,-480.0,0.00019397,2]
[373319958,1752943859524,-480.0,0.00019397,2]
[373319959,1752943859534,-480.0,0.00019397,2]
[373319960,1752943859545,-480.0,0.00019397,2]
[373319961,1752943859555,-480.0,0.00019397,2]
[373319962,1752943859565,-480.0,0.00019397,2]
[373319963,1752943859575,-601.93,0.00019397,2]
[373319964,1752943859585,-1031.87,0.00019397,2]
[373319965,1752943859595,-480.0,0.00019397,2]
[373319966,1752943859605,-750.21,0.00019397,2]
[373319967,1752943859616,-524.84,0.00019397,2]
[373319968,1752943859627,-480.0,0.00019397,2]
[373319969,1752943859638,-925.557106,0.00019397,2]
[373319970,1752943859649,-1362.0,0.00019397,2]
[373319971,1752943859660,-480.0,0.00019397,2]
[373319972,1752943859671,-925.557106,0.00019397,2]
[373319973,1752943859682,-309.574514,0.00019397,2]
[373319974,1752943859694,-480.0,0.00019397,2]
[373319975,1752943859705,-309.574514,0.00019397,2]
[373319976,1752943859716,-480.0,0.00019397,2]
[373319977,1752943859731,-480.0,0.00019397,2]
[373319978,1752943859742,-1021.72,0.00019397,2]
[373319979,1752943859754,-480.0,0.00019397,2]
[373319980,1752943859765,-480.0,0.00019397,2]
[373319981,1752943859778,-598.63,0.00019397,2]
[373319982,1752943859789,-925.557106,0.00019397,2]
[373319983,1752943859801,-480.0,0.00019397,2]
[373319984,1752943859813,-925.557106,0.00019397,2]
[373319985,1752943859823,-480.0,0.00019397,2]
[373319986,1752943859834,-480.0,0.00019397,2]
[373319987,1752943859846,-480.0,0.00019397,2]
[373319988,1752943859856,-974.52,0.00019397,2]
[373319989,1752943859867,-309.574514,0.00019397,2]
[373319990,1752943859878,-309.574514,0.00019397,2]
[373319991,1752943859890,-480.0,0.00019397,2]